Workbook

Sheet Quarterly Marketing Budget
B3: Quarterly Marketing Budget
B4: =NOW() -> 2010-04-19T17:40:49.080
B5: For the Period Ending 12/31/2009
C8: Quarter 1 | E8: Quarter 2 | G8: Quarter 3 | I8: Quarter 4
B9: Advertising | C9: Expenses | D9: % Total | E9: Expenses | F9: % Total | G9: Expenses | H9: % Total | I9: Expenses | J9: % Total
B10: Print | C10: $10,000 | D10: =IF(SUM(C10:C16),+C10/C17,"") -> 11.6% | E10: $12,000 | F10: =IF(SUM(E10:E16),+E10/E17,"") -> 12.4% | G10: $10,000 | H10: =IF(SUM(G10:G16),+G10/G17,"") -> 11.6% | I10: $12,000 | J10: =IF(SUM(I10:I16),+I10/I17,"") -> 12.4%
B11: Radio | C11: 10,000 | D11: =IF(SUM(C10:C16),+C11/C17,"") -> 11.6% | E11: 11,000 | F11: =IF(SUM(E10:E16),+E11/E17,"") -> 11.3% | G11: 10,000 | H11: =IF(SUM(G10:G16),+G11/G17,"") -> 11.6% | I11: 11,000 | J11: =IF(SUM(I10:I16),+I11/I17,"") -> 11.3%
B12: Television | C12: 25,000 | D12: =IF(SUM(C10:C16),+C12/C17,"") -> 29.1% | E12: 28,000 | F12: =IF(SUM(E10:E16),+E12/E17,"") -> 28.9% | G12: 25,000 | H12: =IF(SUM(G10:G16),+G12/G17,"") -> 29.1% | I12: 28,000 | J12: =IF(SUM(I10:I16),+I12/I17,"") -> 28.9%
B13: Direct Mail | C13: 30,000 | D13: =IF(SUM(C10:C16),+C13/C17,"") -> 34.9% | E13: 32,000 | F13: =IF(SUM(E10:E16),+E13/E17,"") -> 33.0% | G13: 30,000 | H13: =IF(SUM(G10:G16),+G13/G17,"") -> 34.9% | I13: 32,000 | J13: =IF(SUM(I10:I16),+I13/I17,"") -> 33.0%
B14: Point of Purchase | C14: 5,000 | D14: =IF(SUM(C10:C16),+C14/C17,"") -> 5.8% | E14: 6,000 | F14: =IF(SUM(E10:E16),+E14/E17,"") -> 6.2% | G14: 5,000 | H14: =IF(SUM(G10:G16),+G14/G17,"") -> 5.8% | I14: 6,000 | J14: =IF(SUM(I10:I16),+I14/I17,"") -> 6.2%
B15: Co-op | C15: 5,000 | D15: =IF(SUM(C10:C16),+C15/C17,"") -> 5.8% | E15: 7,000 | F15: =IF(SUM(E10:E16),+E15/E17,"") -> 7.2% | G15: 5,000 | H15: =IF(SUM(G10:G16),+G15/G17,"") -> 5.8% | I15: 7,000 | J15: =IF(SUM(I10:I16),+I15/I17,"") -> 7.2%
B16: Other | C16: 1,000 | D16: =IF(SUM(C10:C16),+C16/C17,"") -> 1.2% | E16: 1,000 | F16: =IF(SUM(E10:E16),+E16/E17,"") -> 1.0% | G16: 1,000 | H16: =IF(SUM(G10:G16),+G16/G17,"") -> 1.2% | I16: 1,000 | J16: =IF(SUM(I10:I16),+I16/I17,"") -> 1.0%
B17: Totals | C17: =IF(SUM(C10:C16),SUM(C10:C16),"") -> $86,000 | D17: =IF(SUM(C10:C16),C17/C52,"") -> 12.0% | E17: =IF(SUM(E10:E16),SUM(E10:E16),"") -> $97,000 | F17: =IF(SUM(E10:E16),E17/E52,"") -> 13.1% | G17: =IF(SUM(G10:G16),SUM(G10:G16),"") -> $86,000 | H17: =IF(SUM(G10:G16),G17/G52,"") -> 12.0% | I17: =IF(SUM(I10:I16),SUM(I10:I16),"") -> $97,000 | J17: =IF(SUM(I10:I16),I17/I52,"") -> 13.1%
B18: Sales Promotion
B19: Trade Shows | C19: $2,000 | D19: =IF(SUM(C19:C21),C19/C22,"") -> 15.4% | E19: $3,000 | F19: =IF(SUM(E19:E21),E19/E22,"") -> 54.5% | G19: $2,000 | H19: =IF(SUM(G19:G21),G19/G22,"") -> 15.4% | I19: $3,000 | J19: =IF(SUM(I19:I21),I19/I22,"") -> 54.5%
B20: Sales Force Promotion | C20: 10,000 | D20: =IF(SUM(C19:C21),C20/C22,"") -> 76.9% | E20: 2,000 | F20: =IF(SUM(E19:E21),E20/E22,"") -> 36.4% | G20: 10,000 | H20: =IF(SUM(G19:G21),G20/G22,"") -> 76.9% | I20: 2,000 | J20: =IF(SUM(I19:I21),I20/I22,"") -> 36.4%
B21: Other | C21: 1,000 | D21: =IF(SUM(C19:C21),C21/C22,"") -> 7.7% | E21: 500 | F21: =IF(SUM(E19:E21),E21/E22,"") -> 9.1% | G21: 1,000 | H21: =IF(SUM(G19:G21),G21/G22,"") -> 7.7% | I21: 500 | J21: =IF(SUM(I19:I21),I21/I22,"") -> 9.1%
B22: Totals | C22: =IF(SUM(C19:C21),SUM(C19:C21),"") -> $13,000 | D22: =IF(SUM(C19:C21),+C22/C52,"") -> 1.8% | E22: =IF(SUM(E19:E21),SUM(E19:E21),"") -> $5,500 | F22: =IF(SUM(E19:E21),+E22/E52,"") -> 0.7% | G22: =IF(SUM(G19:G21),SUM(G19:G21),"") -> $13,000 | H22: =IF(SUM(G19:G21),+G22/G52,"") -> 1.8% | I22: =IF(SUM(I19:I21),SUM(I19:I21),"") -> $5,500 | J22: =IF(SUM(I19:I21),+I22/I52,"") -> 0.7%
B23: G&A
B24: Clerical | C24: $100,000 | D24: =IF(SUM(C24:C29),C24/C30,"") -> 27.5% | E24: $110,000 | F24: =IF(SUM(E24:E29),E24/E30,"") -> 28.4% | G24: $100,000 | H24: =IF(SUM(G24:G29),G24/G30,"") -> 27.5% | I24: $110,000 | J24: =IF(SUM(I24:I29),I24/I30,"") -> 28.4%
B25: Managerial | C25: 200,000 | D25: =IF(SUM(C24:C29),C25/C30,"") -> 54.9% | E25: 210,000 | F25: =IF(SUM(E24:E29),E25/E30,"") -> 54.3% | G25: 200,000 | H25: =IF(SUM(G24:G29),G25/G30,"") -> 54.9% | I25: 210,000 | J25: =IF(SUM(I24:I29),I25/I30,"") -> 54.3%
B26: Telephone | C26: 40,000 | D26: =IF(SUM(C24:C29),C26/C30,"") -> 11.0% | E26: 41,000 | F26: =IF(SUM(E24:E29),E26/E30,"") -> 10.6% | G26: 40,000 | H26: =IF(SUM(G24:G29),G26/G30,"") -> 11.0% | I26: 41,000 | J26: =IF(SUM(I24:I29),I26/I30,"") -> 10.6%
B27: Travel | C27: 15,000 | D27: =IF(SUM(C24:C29),C27/C30,"") -> 4.1% | E27: 16,000 | F27: =IF(SUM(E24:E29),E27/E30,"") -> 4.1% | G27: 15,000 | H27: =IF(SUM(G24:G29),G27/G30,"") -> 4.1% | I27: 16,000 | J27: =IF(SUM(I24:I29),I27/I30,"") -> 4.1%
B28: Supplies | C28: 8,000 | D28: =IF(SUM(C24:C29),C28/C30,"") -> 2.2% | E28: 9,000 | F28: =IF(SUM(E24:E29),E28/E30,"") -> 2.3% | G28: 8,000 | H28: =IF(SUM(G24:G29),G28/G30,"") -> 2.2% | I28: 9,000 | J28: =IF(SUM(I24:I29),I28/I30,"") -> 2.3%
B29: Other | C29: 1,000 | D29: =IF(SUM(C24:C29),C29/C30,"") -> 0.3% | E29: 1,000 | F29: =IF(SUM(E24:E29),E29/E30,"") -> 0.3% | G29: 1,000 | H29: =IF(SUM(G24:G29),G29/G30,"") -> 0.3% | I29: 1,000 | J29: =IF(SUM(I24:I29),I29/I30,"") -> 0.3%
B30: Totals | C30: =IF(SUM(C24:C29),SUM(C24:C29),"") -> $364,000 | D30: =IF(SUM(C24:C29),C30/C52,"") -> 51.0% | E30: =IF(SUM(E24:E29),SUM(E24:E29),"") -> $387,000 | F30: =IF(SUM(E24:E29),E30/E52,"") -> 52.3% | G30: =IF(SUM(G24:G29),SUM(G24:G29),"") -> $364,000 | H30: =IF(SUM(G24:G29),G30/G52,"") -> 51.0% | I30: =IF(SUM(I24:I29),SUM(I24:I29),"") -> $387,000 | J30: =IF(SUM(I24:I29),I30/I52,"") -> 52.3%
B31: HR Development
B32: Videos | C32: $1,000 | D32: =IF(SUM(C32:C35),+C32/C36,"") -> 2.7% | E32: $1,000 | F32: =IF(SUM(E32:E35),+E32/E36,"") -> 2.7% | G32: $1,000 | H32: =IF(SUM(G32:G35),+G32/G36,"") -> 2.7% | I32: $1,000 | J32: =IF(SUM(I32:I35),+I32/I36,"") -> 2.7%
B33: Workshops | C33: 20,000 | D33: =IF(SUM(C32:C35),+C33/C36,"") -> 54.1% | E33: 20,000 | F33: =IF(SUM(E32:E35),+E33/E36,"") -> 54.1% | G33: 20,000 | H33: =IF(SUM(G32:G35),+G33/G36,"") -> 54.1% | I33: 20,000 | J33: =IF(SUM(I32:I35),+I33/I36,"") -> 54.1%
B34: Tuition / Seminars | C34: 15,000 | D34: =IF(SUM(C32:C35),+C34/C36,"") -> 40.5% | E34: 15,000 | F34: =IF(SUM(E32:E35),+E34/E36,"") -> 40.5% | G34: 15,000 | H34: =IF(SUM(G32:G35),+G34/G36,"") -> 40.5% | I34: 15,000 | J34: =IF(SUM(I32:I35),+I34/I36,"") -> 40.5%
B35: Other | C35: 1,000 | D35: =IF(SUM(C32:C35),+C35/C36,"") -> 2.7% | E35: 1,000 | F35: =IF(SUM(E32:E35),+E35/E36,"") -> 2.7% | G35: 1,000 | H35: =IF(SUM(G32:G35),+G35/G36,"") -> 2.7% | I35: 1,000 | J35: =IF(SUM(I32:I35),+I35/I36,"") -> 2.7%
B36: Totals | C36: =IF(SUM(C32:C35),SUM(C32:C35),"") -> $37,000 | D36: =IF(SUM(C32:C35),+C36/C52,"") -> 5.2% | E36: =IF(SUM(E32:E35),SUM(E32:E35),"") -> $37,000 | F36: =IF(SUM(E32:E35),+E36/E52,"") -> 5.0% | G36: =IF(SUM(G32:G35),SUM(G32:G35),"") -> $37,000 | H36: =IF(SUM(G32:G35),+G36/G52,"") -> 5.2% | I36: =IF(SUM(I32:I35),SUM(I32:I35),"") -> $37,000 | J36: =IF(SUM(I32:I35),+I36/I52,"") -> 5.0%
B37: Sales Force
B38: Motivational Programs | C38: $1,000 | D38: =IF(SUM(C38:C43),+C38/C44,"") -> 0.5% | E38: $1,000 | F38: =IF(SUM(E38:E43),+E38/E44,"") -> 0.5% | G38: $1,000 | H38: =IF(SUM(G38:G43),+G38/G44,"") -> 0.5% | I38: $1,000 | J38: =IF(SUM(I38:I43),+I38/I44,"") -> 0.5%
B39: Recruiting | C39: 2,000 | D39: =IF(SUM(C38:C43),+C39/C44,"") -> 1.1% | E39: 2,000 | F39: =IF(SUM(E38:E43),+E39/E44,"") -> 1.1% | G39: 2,000 | H39: =IF(SUM(G38:G43),+G39/G44,"") -> 1.1% | I39: 2,000 | J39: =IF(SUM(I38:I43),+I39/I44,"") -> 1.1%
B40: Salaries and Benefits | C40: 150,000 | D40: =IF(SUM(C38:C43),+C40/C44,"") -> 81.5% | E40: 150,000 | F40: =IF(SUM(E38:E43),+E40/E44,"") -> 81.5% | G40: 150,000 | H40: =IF(SUM(G38:G43),+G40/G44,"") -> 81.5% | I40: 150,000 | J40: =IF(SUM(I38:I43),+I40/I44,"") -> 81.5%
B41: Telephone | C41: 20,000 | D41: =IF(SUM(C38:C43),+C41/C44,"") -> 10.9% | E41: 20,000 | F41: =IF(SUM(E38:E43),+E41/E44,"") -> 10.9% | G41: 20,000 | H41: =IF(SUM(G38:G43),+G41/G44,"") -> 10.9% | I41: 20,000 | J41: =IF(SUM(I38:I43),+I41/I44,"") -> 10.9%
B42: Training | C42: 10,000 | D42: =IF(SUM(C38:C43),+C42/C44,"") -> 5.4% | E42: 10,000 | F42: =IF(SUM(E38:E43),+E42/E44,"") -> 5.4% | G42: 10,000 | H42: =IF(SUM(G38:G43),+G42/G44,"") -> 5.4% | I42: 10,000 | J42: =IF(SUM(I38:I43),+I42/I44,"") -> 5.4%
B43: Other | C43: 1,000 | D43: =IF(SUM(C38:C43),+C43/C44,"") -> 0.5% | E43: 1,000 | F43: =IF(SUM(E38:E43),+E43/E44,"") -> 0.5% | G43: 1,000 | H43: =IF(SUM(G38:G43),+G43/G44,"") -> 0.5% | I43: 1,000 | J43: =IF(SUM(I38:I43),+I43/I44,"") -> 0.5%
B44: Totals | C44: =IF(SUM(C38:C43),SUM(C38:C43),"") -> $184,000 | D44: =IF(SUM(C38:C43),+C44/C52,"") -> 25.8% | E44: =IF(SUM(E38:E43),SUM(E38:E43),"") -> $184,000 | F44: =IF(SUM(E38:E43),+E44/E52,"") -> 24.8% | G44: =IF(SUM(G38:G43),SUM(G38:G43),"") -> $184,000 | H44: =IF(SUM(G38:G43),+G44/G52,"") -> 25.8% | I44: =IF(SUM(I38:I43),SUM(I38:I43),"") -> $184,000 | J44: =IF(SUM(I38:I43),+I44/I52,"") -> 24.8%
B45: Market Research
B46: Salaries and Benefits | C46: $15,000 | D46: =IF(SUM(C46:C50),+C46/C51,"") -> 50.0% | E46: $15,000 | F46: =IF(SUM(E46:E50),+E46/E51,"") -> 50.0% | G46: $15,000 | H46: =IF(SUM(G46:G50),+G46/G51,"") -> 50.0% | I46: $15,000 | J46: =IF(SUM(I46:I50),+I46/I51,"") -> 50.0%
B47: Supplies | C47: 5,000 | D47: =IF(SUM(C46:C50),+C47/C51,"") -> 16.7% | E47: 5,000 | F47: =IF(SUM(E46:E50),+E47/E51,"") -> 16.7% | G47: 5,000 | H47: =IF(SUM(G46:G50),+G47/G51,"") -> 16.7% | I47: 5,000 | J47: =IF(SUM(I46:I50),+I47/I51,"") -> 16.7%
B48: Telephone | C48: 4,000 | D48: =IF(SUM(C46:C50),+C48/C51,"") -> 13.3% | E48: 4,000 | F48: =IF(SUM(E46:E50),+E48/E51,"") -> 13.3% | G48: 4,000 | H48: =IF(SUM(G46:G50),+G48/G51,"") -> 13.3% | I48: 4,000 | J48: =IF(SUM(I46:I50),+I48/I51,"") -> 13.3%
B49: Travel | C49: 5,000 | D49: =IF(SUM(C46:C50),+C49/C51,"") -> 16.7% | E49: 5,000 | F49: =IF(SUM(E46:E50),+E49/E51,"") -> 16.7% | G49: 5,000 | H49: =IF(SUM(G46:G50),+G49/G51,"") -> 16.7% | I49: 5,000 | J49: =IF(SUM(I46:I50),+I49/I51,"") -> 16.7%
B50: Other | C50: 1,000 | D50: =IF(SUM(C46:C50),+C50/C51,"") -> 3.3% | E50: 1,000 | F50: =IF(SUM(E46:E50),+E50/E51,"") -> 3.3% | G50: 1,000 | H50: =IF(SUM(G46:G50),+G50/G51,"") -> 3.3% | I50: 1,000 | J50: =IF(SUM(I46:I50),+I50/I51,"") -> 3.3%
B51: Totals | C51: =IF(SUM(C46:C50),SUM(C46:C50),"") -> $30,000 | D51: =IF(SUM(C46:C50),+C51/C52,"") -> 4.2% | E51: =IF(SUM(E46:E50),SUM(E46:E50),"") -> $30,000 | F51: =IF(SUM(E46:E50),+E51/E52,"") -> 4.1% | G51: =IF(SUM(G46:G50),SUM(G46:G50),"") -> $30,000 | H51: =IF(SUM(G46:G50),+G51/G52,"") -> 4.2% | I51: =IF(SUM(I46:I50),SUM(I46:I50),"") -> $30,000 | J51: =IF(SUM(I46:I50),+I51/I52,"") -> 4.1%
B52: Grand Totals | C52: =IF(SUM(C17,C22,C30,C36,C44),SUM(C17,C22,C30,C36,C44,C51),"") -> $714,000 | D52: =IF(SUM(C52),+C52/C52,"") -> 100% | E52: =IF(SUM(E17,E22,E30,E36,E44),SUM(E17,E22,E30,E36,E44,E51),"") -> $740,500 | F52: =IF(SUM(E52),+E52/E52,"") -> 100% | G52: =IF(SUM(G17,G22,G30,G36,G44),SUM(G17,G22,G30,G36,G44,G51),"") -> $714,000 | H52: =IF(SUM(G52),+G52/G52,"") -> 100% | I52: =IF(SUM(I17,I22,I30,I36,I44),SUM(I17,I22,I30,I36,I44,I51),"") -> $740,500 | J52: =IF(SUM(I52),+I52/I52,"") -> 100%
